[Event "*** Titled Tuesday Blitz"]
[Site "Chess.com"]
[Date "2019.10.01"]
[Round "6"]
[White "hypert"]
[Black "kosya4ok"]
[Result "0-1"]
[WhiteElo "2429"]
[BlackElo "2613"]
[TimeControl "180+2"]
[EndTime "14:24:59 PDT"]
[Termination "kosya4ok won by resignation"]

1. Nf3 {[%clk 0:03:01.9]} 1... d5 {[%clk 0:03:00.5]} 2. g3 {[%clk 0:03:03.3]}
2... Nf6 {[%clk 0:03:01.4]} 3. Bg2 {[%clk 0:03:04.8]} 3... c5 {[%clk 0:03:02.2]}
4. O-O {[%clk 0:03:03.4]} 4... Nc6 {[%clk 0:03:03.5]} 5. d4 {[%clk 0:03:03.7]}
5... e6 {[%clk 0:03:05]} 6. c4 {[%clk 0:02:53]} 6... dxc4 {[%clk 0:03:06.9]} 7.
Qa4 {[%clk 0:02:53.4]} 7... Bd7 {[%clk 0:03:08]} 8. dxc5 {[%clk 0:02:51.8]} 8...
Bxc5 {[%clk 0:03:08.1]} 9. Qxc4 {[%clk 0:02:52.9]} 9... Qe7 {[%clk 0:03:03.4]}
10. Nc3 {[%clk 0:02:53.2]} 10... Rc8 {[%clk 0:03:04.9]} 11. Bg5 {[%clk
0:02:52.2]} 11... Bb6 {[%clk 0:02:53.4]} 12. Qh4 {[%clk 0:02:50.6]} 12... h6
{[%clk 0:01:21.1]} 13. Ne4 {[%clk 0:02:48.7]} 13... Bd8 {[%clk 0:01:21.9]} 14.
Rfd1 {[%clk 0:02:11.5]} 14... Rc7 {[%clk 0:01:21.3]} 15. Nd6+ {[%clk 0:01:54.1]}
15... Kf8 {[%clk 0:01:21.7]} 16. Ne4 {[%clk 0:01:50.7]} 16... Kg8 {[%clk
0:01:12.9]} 17. Bf4 {[%clk 0:01:34.4]} 17... e5 {[%clk 0:00:50.6]} 18. Nxf6+
{[%clk 0:01:11.4]} 18... Qxf6 {[%clk 0:00:32.7]} 19. Nxe5 {[%clk 0:01:05.9]}
19... g5 {[%clk 0:00:31.5]} 20. Qh5 {[%clk 0:00:43.1]} 20... Nxe5 {[%clk
0:00:30.4]} 21. Bxe5 {[%clk 0:00:37.5]} 21... Qxe5 {[%clk 0:00:32.3]} 22. Bd5
{[%clk 0:00:26.4]} 22... Qf6 {[%clk 0:00:33.3]} 23. Rd3 {[%clk 0:00:25]} 23...
Bf5 {[%clk 0:00:21.5]} 24. Rf3 {[%clk 0:00:19.9]} 24... Bg6 {[%clk 0:00:22.6]}
25. Qg4 {[%clk 0:00:20.3]} 25... Qxb2 {[%clk 0:00:23.3]} 26. Rd1 {[%clk
0:00:20.5]} 26... Kg7 {[%clk 0:00:23.7]} 27. h4 {[%clk 0:00:18.6]} 27... Bf6
{[%clk 0:00:24.8]} 28. h5 {[%clk 0:00:19.5]} 28... Bc2 {[%clk 0:00:26.2]} 29.
Rd2 {[%clk 0:00:19.1]} 29... Qc1+ {[%clk 0:00:27.4]} 30. Kg2 {[%clk 0:00:20.3]}
30... Qxd2 {[%clk 0:00:28.6]} 31. e4 {[%clk 0:00:15.9]} 31... Bd1 {[%clk
0:00:26.9]} 32. Rxf6 {[%clk 0:00:14.3]} 32... Bxg4 {[%clk 0:00:26.9]} 0-1

[Event "*** Titled Tuesday Blitz"]
[Site "Chess.com"]
[Date "2019.10.01"]
[Round "6"]
[White "tigra"]
[Black "Konavets"]
[Result "1-0"]
[WhiteElo "2732"]
[BlackElo "2930"]
[TimeControl "180+2"]
[EndTime "14:25:07 PDT"]
[Termination "tigra won by resignation"]

1. Nc3 {[%clk 0:03:01.9]} 1... e5 {[%clk 0:03:00.6]} 2. Nf3 {[%clk 0:03:01.2]}
2... Nc6 {[%clk 0:03:01.8]} 3. d4 {[%clk 0:03:02.6]} 3... exd4 {[%clk
0:03:03.1]} 4. Nxd4 {[%clk 0:03:04.5]} 4... Nf6 {[%clk 0:03:04.5]} 5. Bg5 {[%clk
0:03:04.6]} 5... Be7 {[%clk 0:03:06]} 6. Nf5 {[%clk 0:03:04.4]} 6... O-O {[%clk
0:03:07]} 7. Nxe7+ {[%clk 0:03:04.4]} 7... Qxe7 {[%clk 0:03:05.1]} 8. Nd5 {[%clk
0:03:03.3]} 8... Qe5 {[%clk 0:03:06.2]} 9. Bxf6 {[%clk 0:03:01]} 9... gxf6
{[%clk 0:03:06.5]} 10. c3 {[%clk 0:02:57.1]} 10... Ne7 {[%clk 0:03:07.9]} 11.
Nxe7+ {[%clk 0:02:55.3]} 11... Qxe7 {[%clk 0:03:09.8]} 12. e3 {[%clk 0:02:56.8]}
12... d6 {[%clk 0:03:09.6]} 13. Bd3 {[%clk 0:02:58]} 13... Kh8 {[%clk
0:03:10.8]} 14. Qh5 {[%clk 0:02:57.1]} 14... f5 {[%clk 0:03:12.3]} 15. Bxf5
{[%clk 0:02:58.6]} 15... Bxf5 {[%clk 0:03:14.2]} 16. Qxf5 {[%clk 0:03:00.5]}
16... Rg8 {[%clk 0:03:16.1]} 17. O-O {[%clk 0:03:01.6]} 17... Rg5 {[%clk
0:03:16.1]} 18. Qf3 {[%clk 0:03:02.7]} 18... Rag8 {[%clk 0:03:14.9]} 19. g3
{[%clk 0:03:01.8]} 19... d5 {[%clk 0:03:15.5]} 20. Rad1 {[%clk 0:03:02]} 20...
Qe6 {[%clk 0:03:16.7]} 21. Rd4 {[%clk 0:03:02.3]} 21... Rf5 {[%clk 0:03:18.1]}
22. Rf4 {[%clk 0:03:02.8]} 22... Rxf4 {[%clk 0:03:19.6]} 23. Qxf4 {[%clk
0:03:04.3]} 23... c5 {[%clk 0:03:20.9]} 24. Rd1 {[%clk 0:03:02.4]} 24... b6
{[%clk 0:03:21.8]} 25. Qf3 {[%clk 0:02:55]} 25... Rd8 {[%clk 0:03:20.3]} 26. a3
{[%clk 0:02:52]} 26... Rd7 {[%clk 0:03:21]} 27. Qf4 {[%clk 0:02:50.8]} 27... h6
{[%clk 0:02:57.7]} 28. h4 {[%clk 0:02:50.9]} 28... Kh7 {[%clk 0:02:56.9]} 29.
Kf1 {[%clk 0:02:51.7]} 29... Re7 {[%clk 0:02:54.1]} 30. Rd2 {[%clk 0:02:35.9]}
30... Rd7 {[%clk 0:02:53]} 31. Ke1 {[%clk 0:02:28.5]} 31... Qg6 {[%clk
0:02:53.7]} 32. Qe5 {[%clk 0:02:25.5]} 32... Qb1+ {[%clk 0:02:47.3]} 33. Rd1
{[%clk 0:02:23.8]} 33... Qc2 {[%clk 0:02:48.5]} 34. Rd2 {[%clk 0:02:21.8]} 34...
Qb1+ {[%clk 0:02:48.8]} 35. Ke2 {[%clk 0:02:23.4]} 35... d4 {[%clk 0:02:34]} 36.
cxd4 {[%clk 0:02:18.3]} 36... cxd4 {[%clk 0:02:34.1]} 37. exd4 {[%clk
0:02:15.6]} 37... Rd6 {[%clk 0:02:07.8]} 38. d5 {[%clk 0:02:11.9]} 38... Rf6
{[%clk 0:02:08.7]} 39. f3 {[%clk 0:01:58.5]} 39... Rg6 {[%clk 0:01:26.8]} 40. d6
{[%clk 0:01:52.9]} 40... Qh1 {[%clk 0:01:21.2]} 41. d7 {[%clk 0:00:58.3]} 41...
Qg2+ {[%clk 0:01:15.5]} 42. Ke3 {[%clk 0:00:54.8]} 42... Qg1+ {[%clk 0:01:13.1]}
43. Kd3 {[%clk 0:00:55.6]} 43... Qb1+ {[%clk 0:01:14.2]} 44. Ke2 {[%clk
0:00:44.2]} 1-0

[Event "*** Titled Tuesday Blitz"]
[Site "Chess.com"]
[Date "2019.10.01"]
[Round "6"]
[White "Faustregel"]
[Black "GHANDEEVAM2003"]
[Result "0-1"]
[WhiteElo "2569"]
[BlackElo "2973"]
[TimeControl "180+2"]
[EndTime "14:25:07 PDT"]
[Termination "GHANDEEVAM2003 won by checkmate"]

1. e4 {[%clk 0:03:01.9]} 1... c5 {[%clk 0:02:58.1]} 2. Nf3 {[%clk 0:03:02.3]}
2... e6 {[%clk 0:02:59.5]} 3. d4 {[%clk 0:03:03]} 3... cxd4 {[%clk 0:03:01.4]}
4. Nxd4 {[%clk 0:03:03.7]} 4... Nc6 {[%clk 0:03:02.8]} 5. Nc3 {[%clk 0:03:02.9]}
5... Nf6 {[%clk 0:03:03.4]} 6. Ndb5 {[%clk 0:02:54.3]} 6... d6 {[%clk
0:03:03.6]} 7. Bf4 {[%clk 0:02:52.5]} 7... e5 {[%clk 0:03:05]} 8. Bg5 {[%clk
0:02:54]} 8... a6 {[%clk 0:03:06.4]} 9. Na3 {[%clk 0:02:53.6]} 9... b5 {[%clk
0:03:07.9]} 10. Nd5 {[%clk 0:02:53.8]} 10... Be7 {[%clk 0:03:06.5]} 11. Bxf6
{[%clk 0:02:51.3]} 11... Bxf6 {[%clk 0:03:07.8]} 12. c3 {[%clk 0:02:51.5]} 12...
Bg5 {[%clk 0:03:05.9]} 13. Nc2 {[%clk 0:02:50.3]} 13... Rb8 {[%clk 0:03:07.1]}
14. a4 {[%clk 0:02:42.2]} 14... bxa4 {[%clk 0:03:09]} 15. Ncb4 {[%clk 0:02:40]}
15... Nxb4 {[%clk 0:03:09.7]} 16. Nxb4 {[%clk 0:02:35.7]} 16... Bd7 {[%clk
0:03:10.9]} 17. Bxa6 {[%clk 0:02:28.2]} 17... O-O {[%clk 0:02:51.8]} 18. Qxd6
{[%clk 0:02:19.7]} 18... Be7 {[%clk 0:02:49.9]} 19. Qd3 {[%clk 0:02:15.5]} 19...
Bxb4 {[%clk 0:02:39.6]} 20. cxb4 {[%clk 0:02:16.1]} 20... Rxb4 {[%clk
0:02:41.5]} 21. O-O {[%clk 0:02:13.1]} 21... Rxb2 {[%clk 0:02:42.9]} 22. Rfd1
{[%clk 0:02:07.5]} 22... Qb6 {[%clk 0:02:43.2]} 23. Rd2 {[%clk 0:01:45]} 23...
Rxd2 {[%clk 0:02:37.8]} 24. Qxd2 {[%clk 0:01:45.8]} 24... Bc6 {[%clk 0:02:39.4]}
25. Bc4 {[%clk 0:01:44.8]} 25... Rd8 {[%clk 0:02:34.6]} 26. Bd5 {[%clk
0:01:43.6]} 26... h6 {[%clk 0:02:25.2]} 27. h3 {[%clk 0:01:37.3]} 27... Kh7
{[%clk 0:02:06.4]} 28. Qc2 {[%clk 0:00:47]} 28... Be8 {[%clk 0:01:58.7]} 29. Qc4
{[%clk 0:00:40.5]} 29... Qa7 {[%clk 0:01:53.2]} 30. Ra3 {[%clk 0:00:40.4]} 30...
Rb8 {[%clk 0:01:51.4]} 31. Rf3 {[%clk 0:00:33]} 31... Kg8 {[%clk 0:01:24.3]} 32.
Kh2 {[%clk 0:00:26.5]} 32... Qe7 {[%clk 0:01:13.7]} 33. Qa6 {[%clk 0:00:20]}
33... Rd8 {[%clk 0:01:11.5]} 34. Rg3 {[%clk 0:00:19.4]} 34... Rd6 {[%clk
0:01:10.4]} 35. Qa8 {[%clk 0:00:20.4]} 35... g6 {[%clk 0:01:08.2]} 36. Qa5
{[%clk 0:00:16.1]} 36... Rf6 {[%clk 0:01:05.7]} 37. Qa8 {[%clk 0:00:11.3]} 37...
Kg7 {[%clk 0:01:04.4]} 38. Rc3 {[%clk 0:00:10]} 38... Rxf2 {[%clk 0:01:03.4]}
39. Rc8 {[%clk 0:00:10.9]} 39... Qg5 {[%clk 0:01:04.5]} 40. Rxe8 {[%clk
0:00:06.9]} 40... Qxg2# {[%clk 0:01:05.8]} 0-1

[Event "*** Titled Tuesday Blitz"]
[Site "Chess.com"]
[Date "2019.10.01"]
[Round "6"]
[White "Qvalda"]
[Black "NemtsevIgor"]
[Result "1-0"]
[WhiteElo "2521"]
[BlackElo "2307"]
[TimeControl "180+2"]
[EndTime "14:25:10 PDT"]
[Termination "Qvalda won by resignation"]

1. d4 {[%clk 0:02:57.1]} 1... c6 {[%clk 0:03:00.5]} 2. c4 {[%clk 0:02:56.2]}
2... d6 {[%clk 0:03:00.5]} 3. Nc3 {[%clk 0:02:47.6]} 3... h6 {[%clk 0:03:01.2]}
4. g3 {[%clk 0:02:46.5]} 4... g5 {[%clk 0:03:02.1]} 5. Bg2 {[%clk 0:02:48]} 5...
Bg7 {[%clk 0:03:02.8]} 6. e4 {[%clk 0:02:32]} 6... Nd7 {[%clk 0:03:02.2]} 7.
Nge2 {[%clk 0:02:29.8]} 7... Nf8 {[%clk 0:02:59.1]} 8. O-O {[%clk 0:02:27.8]}
8... Ng6 {[%clk 0:02:58.1]} 9. f4 {[%clk 0:02:25.3]} 9... gxf4 {[%clk
0:02:52.1]} 10. Nxf4 {[%clk 0:02:20]} 10... Nxf4 {[%clk 0:02:50.6]} 11. gxf4
{[%clk 0:02:18]} 11... Qb6 {[%clk 0:02:50.9]} 12. Be3 {[%clk 0:02:05.4]} 12...
Qxb2 {[%clk 0:02:48.3]} 13. Qd3 {[%clk 0:01:48.9]} 13... Qa3 {[%clk 0:02:41.3]}
14. Rab1 {[%clk 0:01:47.5]} 14... Nf6 {[%clk 0:02:34.8]} 15. Rb3 {[%clk
0:01:45.8]} 15... Qa5 {[%clk 0:02:35]} 16. Bd2 {[%clk 0:01:36.7]} 16... Qh5
{[%clk 0:02:29.7]} 17. Ne2 {[%clk 0:01:31.6]} 17... Rg8 {[%clk 0:02:22.3]} 18.
Kh1 {[%clk 0:01:25.1]} 18... Ng4 {[%clk 0:02:10.2]} 19. h3 {[%clk 0:01:23.5]}
19... Nf6 {[%clk 0:02:10.9]} 20. e5 {[%clk 0:01:19.9]} 20... Bf5 {[%clk
0:01:43.4]} 21. Qe3 {[%clk 0:00:58.4]} 21... Ng4 {[%clk 0:01:40.1]} 22. Qf3
{[%clk 0:00:55.7]} 22... d5 {[%clk 0:01:12.6]} 23. cxd5 {[%clk 0:00:49.3]} 23...
cxd5 {[%clk 0:01:13.7]} 24. Kg1 {[%clk 0:00:42.4]} 24... Rd8 {[%clk 0:01:08.6]}
25. Ng3 {[%clk 0:00:30.7]} 25... Qg6 {[%clk 0:00:57.8]} 26. Nxf5 {[%clk
0:00:31.2]} 26... Qxf5 {[%clk 0:00:59]} 27. hxg4 {[%clk 0:00:28.8]} 27... Qc2
{[%clk 0:00:59.8]} 28. Qd3 {[%clk 0:00:26.1]} 28... Qc8 {[%clk 0:00:59]} 29. f5
{[%clk 0:00:24.6]} 29... h5 {[%clk 0:00:59.8]} 30. Rc1 {[%clk 0:00:24.8]} 30...
Qd7 {[%clk 0:00:58.4]} 31. Qb5 {[%clk 0:00:25.8]} 31... hxg4 {[%clk 0:00:59]}
32. Qxd7+ {[%clk 0:00:20]} 32... Rxd7 {[%clk 0:00:58.6]} 33. Rc8+ {[%clk
0:00:20.8]} 33... Rd8 {[%clk 0:01:00]} 34. Rxd8+ {[%clk 0:00:22.4]} 34... Kxd8
{[%clk 0:01:01.9]} 35. Bxd5 {[%clk 0:00:20.7]} 35... b6 {[%clk 0:01:01.4]} 36.
Bxf7 {[%clk 0:00:21.6]} 36... Rh8 {[%clk 0:01:01]} 37. Bg6 {[%clk 0:00:22.5]}
37... Kc7 {[%clk 0:00:59.8]} 38. Rc3+ {[%clk 0:00:22.7]} 38... Kb7 {[%clk
0:01:00.7]} 39. Rg3 {[%clk 0:00:20.6]} 39... Rd8 {[%clk 0:00:59.2]} 40. Be3
{[%clk 0:00:21]} 40... Kc6 {[%clk 0:00:57]} 41. Rxg4 {[%clk 0:00:21.9]} 41...
Kd5 {[%clk 0:00:58.4]} 42. Bf7+ {[%clk 0:00:23]} 42... Kc6 {[%clk 0:00:57.8]}
43. Rxg7 {[%clk 0:00:24.1]} 1-0

[Event "*** Titled Tuesday Blitz"]
[Site "Chess.com"]
[Date "2019.10.01"]
[Round "6"]
[White "AntonSmirnov"]
[Black "Bryakin_Mikhail"]
[Result "1-0"]
[WhiteElo "2908"]
[BlackElo "2751"]
[TimeControl "180+2"]
[EndTime "14:25:18 PDT"]
[Termination "AntonSmirnov won by resignation"]

1. e4 {[%clk 0:03:01.9]} 1... c6 {[%clk 0:02:58.8]} 2. d4 {[%clk 0:03:02.7]}
2... d5 {[%clk 0:02:58.6]} 3. e5 {[%clk 0:03:02.4]} 3... Bf5 {[%clk 0:02:59.4]}
4. Nf3 {[%clk 0:03:03.6]} 4... e6 {[%clk 0:03:00.6]} 5. Be2 {[%clk 0:03:04.9]}
5... Nd7 {[%clk 0:03:02.2]} 6. O-O {[%clk 0:03:05.6]} 6... Bg6 {[%clk
0:03:03.8]} 7. Nbd2 {[%clk 0:03:01.6]} 7... Nh6 {[%clk 0:03:05.1]} 8. Re1 {[%clk
0:03:00.7]} 8... Nf5 {[%clk 0:03:06.5]} 9. c3 {[%clk 0:03:01.8]} 9... h5 {[%clk
0:03:07.7]} 10. h3 {[%clk 0:03:02.3]} 10... h4 {[%clk 0:03:07.4]} 11. Nf1 {[%clk
0:03:03]} 11... Be7 {[%clk 0:03:08.7]} 12. Ne3 {[%clk 0:03:03.4]} 12... Nxe3
{[%clk 0:03:08.6]} 13. Bxe3 {[%clk 0:03:05.3]} 13... Bf5 {[%clk 0:03:09.4]} 14.
Qb3 {[%clk 0:03:03]} 14... Qb6 {[%clk 0:03:09.7]} 15. Rec1 {[%clk 0:03:00.4]}
15... f6 {[%clk 0:03:05.2]} 16. Bf4 {[%clk 0:02:45.7]} 16... Qxb3 {[%clk
0:03:02.9]} 17. axb3 {[%clk 0:02:46.7]} 17... fxe5 {[%clk 0:03:04.5]} 18. Nxe5
{[%clk 0:02:47.7]} 18... Nxe5 {[%clk 0:03:05.8]} 19. Bxe5 {[%clk 0:02:49.6]}
19... Bf6 {[%clk 0:03:07.3]} 20. Bh2 {[%clk 0:02:48.9]} 20... Kf7 {[%clk
0:03:06.9]} 21. Re1 {[%clk 0:02:49.6]} 21... Rhe8 {[%clk 0:03:06.5]} 22. Bh5+
{[%clk 0:02:49.9]} 22... g6 {[%clk 0:02:58.7]} 23. Bg4 {[%clk 0:02:49.6]} 23...
a6 {[%clk 0:02:51.1]} 24. Be5 {[%clk 0:02:47.4]} 24... Rac8 {[%clk 0:02:50.6]}
25. b4 {[%clk 0:02:48.4]} 25... Be4 {[%clk 0:02:37.7]} 26. Bxf6 {[%clk
0:02:48.6]} 26... Kxf6 {[%clk 0:02:39.3]} 27. f3 {[%clk 0:02:45.8]} 27... Bf5
{[%clk 0:02:38.2]} 28. Re5 {[%clk 0:02:47.4]} 28... Ra8 {[%clk 0:02:37.8]} 29.
Rae1 {[%clk 0:02:47.6]} 29... a5 {[%clk 0:02:35.5]} 30. bxa5 {[%clk 0:02:48.6]}
30... Rxa5 {[%clk 0:02:37.4]} 31. R5e2 {[%clk 0:02:48.9]} 31... c5 {[%clk
0:02:29.5]} 32. dxc5 {[%clk 0:02:48.2]} 32... Rxc5 {[%clk 0:02:31.4]} 33. Ra1
{[%clk 0:02:49.1]} 33... Rb5 {[%clk 0:02:32.2]} 34. Ra4 {[%clk 0:02:48.8]} 34...
Bxg4 {[%clk 0:02:30.1]} 35. Rxg4 {[%clk 0:02:47.3]} 35... Rh8 {[%clk 0:02:29.3]}
36. f4 {[%clk 0:02:43.5]} 36... d4 {[%clk 0:02:07.2]} 37. cxd4 {[%clk
0:02:43.1]} 37... Rd5 {[%clk 0:02:08.7]} 38. Rd2 {[%clk 0:02:43.4]} 38... Rhd8
{[%clk 0:02:09.8]} 39. Rxh4 {[%clk 0:02:39.8]} 39... Rxd4 {[%clk 0:02:11]} 40.
Rxd4 {[%clk 0:02:21.2]} 40... Rxd4 {[%clk 0:02:12.9]} 41. Rh7 {[%clk 0:02:22.3]}
41... Rb4 {[%clk 0:02:13.8]} 42. g4 {[%clk 0:02:23.3]} 42... Rxb2 {[%clk
0:02:14.8]} 43. g5+ {[%clk 0:01:38.5]} 43... Kf5 {[%clk 0:02:14.3]} 44. Rf7+
{[%clk 0:01:37.9]} 44... Ke4 {[%clk 0:02:13.5]} 45. h4 {[%clk 0:01:30.9]} 45...
Kf3 {[%clk 0:02:09]} 46. h5 {[%clk 0:01:31.8]} 46... gxh5 {[%clk 0:02:07.5]} 47.
Rh7 {[%clk 0:01:30.3]} 47... Kxf4 {[%clk 0:02:04.3]} 48. g6 {[%clk 0:01:31.5]}
48... Rb5 {[%clk 0:01:58]} 49. Rf7+ {[%clk 0:01:26.6]} 49... Kg3 {[%clk
0:01:30.7]} 50. g7 {[%clk 0:01:05.9]} 50... Rg5 {[%clk 0:01:31.9]} 51. Rf2
{[%clk 0:01:06.6]} 51... Kh4+ {[%clk 0:01:11.5]} 52. Rg2 {[%clk 0:01:06.5]}
52... Rxg7 {[%clk 0:01:07.8]} 53. Rxg7 {[%clk 0:01:07.4]} 53... e5 {[%clk
0:01:07.5]} 54. Kf2 {[%clk 0:01:06.3]} 54... e4 {[%clk 0:01:07.4]} 55. Ke3
{[%clk 0:01:05.6]} 1-0

[Event "*** Titled Tuesday Blitz"]
[Site "Chess.com"]
[Date "2019.10.01"]
[Round "6"]
[White "colegiodemadrid"]
[Black "SloLev"]
[Result "1/2-1/2"]
[WhiteElo "2350"]
[BlackElo "2473"]
[TimeControl "180+2"]
[EndTime "14:25:29 PDT"]
[Termination "Game drawn by agreement"]

1. Nf3 {[%clk 0:03:01.9]} 1... d5 {[%clk 0:02:59.1]} 2. c4 {[%clk 0:03:02.5]}
2... e6 {[%clk 0:02:59.7]} 3. g3 {[%clk 0:03:02.9]} 3... Nf6 {[%clk 0:03:01.1]}
4. Bg2 {[%clk 0:03:04.4]} 4... c6 {[%clk 0:03:02.7]} 5. O-O {[%clk 0:03:04.3]}
5... Nbd7 {[%clk 0:03:04.2]} 6. b3 {[%clk 0:03:05.5]} 6... Bd6 {[%clk
0:03:03.5]} 7. Nc3 {[%clk 0:03:01.9]} 7... O-O {[%clk 0:03:03.1]} 8. Bb2 {[%clk
0:03:02.8]} 8... b6 {[%clk 0:02:57.6]} 9. cxd5 {[%clk 0:02:57.7]} 9... exd5
{[%clk 0:02:55.7]} 10. Nd4 {[%clk 0:02:56.9]} 10... Bb7 {[%clk 0:02:29.7]} 11.
Nf5 {[%clk 0:02:57.1]} 11... Be5 {[%clk 0:02:19]} 12. f4 {[%clk 0:02:51.4]}
12... Bc7 {[%clk 0:02:16.6]} 13. d3 {[%clk 0:02:51.8]} 13... g6 {[%clk
0:02:03.9]} 14. Nh4 {[%clk 0:02:47.7]} 14... Ng4 {[%clk 0:01:52.9]} 15. Qd2
{[%clk 0:02:45]} 15... Re8 {[%clk 0:01:52.9]} 16. e4 {[%clk 0:02:44.7]} 16...
Nc5 {[%clk 0:01:04.6]} 17. h3 {[%clk 0:02:39.9]} 17... Nf6 {[%clk 0:00:59.8]}
18. e5 {[%clk 0:02:35.9]} 18... Nh5 {[%clk 0:00:58.3]} 19. Kh2 {[%clk
0:02:27.7]} 19... Ba6 {[%clk 0:00:44.9]} 20. Rf3 {[%clk 0:02:21.9]} 20... Ne6
{[%clk 0:00:35.3]} 21. d4 {[%clk 0:02:19.3]} 21... Nhg7 {[%clk 0:00:23.1]} 22.
f5 {[%clk 0:02:15.6]} 22... gxf5 {[%clk 0:00:19.3]} 23. Nxf5 {[%clk 0:02:13.9]}
23... Nxf5 {[%clk 0:00:11.7]} 24. Rxf5 {[%clk 0:02:15.8]} 24... Ng7 {[%clk
0:00:12.9]} 25. Rf6 {[%clk 0:02:09.7]} 25... Qd7 {[%clk 0:00:12.3]} 26. Qg5
{[%clk 0:02:06.2]} 26... Kh8 {[%clk 0:00:08.2]} 27. Ne4 {[%clk 0:01:39.2]} 27...
Bd3 {[%clk 0:00:05.5]} 28. Nd6 {[%clk 0:01:36.8]} 28... Bxd6 {[%clk 0:00:02.5]}
29. Rxd6 {[%clk 0:01:38]} 29... Qc7 {[%clk 0:00:03]} 30. Rd1 {[%clk 0:01:35.2]}
30... Bg6 {[%clk 0:00:04.1]} 31. Rf1 {[%clk 0:01:34.1]} 31... Ne6 {[%clk
0:00:05]} 32. Qf6+ {[%clk 0:01:33.9]} 32... Kg8 {[%clk 0:00:06.6]} 33. h4 {[%clk
0:01:32.1]} 33... Rad8 {[%clk 0:00:06.4]} 34. Ba3 {[%clk 0:01:29.7]} 34... h5
{[%clk 0:00:07.1]} 35. Bh3 {[%clk 0:01:28.4]} 35... Rxd6 {[%clk 0:00:06.8]} 36.
Bxd6 {[%clk 0:01:25.3]} 36... Qd8 {[%clk 0:00:08.1]} 37. Bxe6 {[%clk 0:01:24.5]}
37... Qxf6 {[%clk 0:00:07.5]} 38. Rxf6 {[%clk 0:01:23.8]} 38... Rxe6 {[%clk
0:00:08.9]} 39. Rxe6 {[%clk 0:01:23.7]} 39... fxe6 {[%clk 0:00:10.8]} 40. b4
{[%clk 0:01:25.1]} 40... Bb1 {[%clk 0:00:10.8]} 41. a3 {[%clk 0:01:24.8]} 41...
Kf7 {[%clk 0:00:12.3]} 42. Kg2 {[%clk 0:01:25.4]} 42... Kg6 {[%clk 0:00:13.2]}
43. Kf3 {[%clk 0:01:27]} 43... Kf5 {[%clk 0:00:14.7]} 44. Bb8 {[%clk 0:01:23.9]}
44... a6 {[%clk 0:00:15.9]} 45. Bc7 {[%clk 0:01:25.4]} 45... b5 {[%clk
0:00:17.2]} 46. Bd8 {[%clk 0:01:26.9]} 46... Be4+ {[%clk 0:00:18.5]} 47. Kf2
{[%clk 0:01:25.3]} 47... Kg4 {[%clk 0:00:20.4]} 48. Bg5 {[%clk 0:01:24.8]} 48...
Bh1 {[%clk 0:00:21.2]} 49. Bf4 {[%clk 0:01:22.5]} 49... Kf5 {[%clk 0:00:22.6]}
50. Ke3 {[%clk 0:01:23.4]} 50... Kg4 {[%clk 0:00:23.8]} 51. Kf2 {[%clk 0:01:24]}
51... Bf3 {[%clk 0:00:23.9]} 52. Ke3 {[%clk 0:01:23.3]} 52... Be4 {[%clk
0:00:25]} 53. Kf2 {[%clk 0:01:24.1]} 1/2-1/2

[Event "*** Titled Tuesday Blitz"]
[Site "Chess.com"]
[Date "2019.10.01"]
[Round "6"]
[White "dlp300"]
[Black "morphinho22"]
[Result "1-0"]
[WhiteElo "2506"]
[BlackElo "2354"]
[TimeControl "180+2"]
[EndTime "14:25:37 PDT"]
[Termination "dlp300 won by checkmate"]

1. Nf3 {[%clk 0:03:01.7]} 1... Nf6 {[%clk 0:03:01.1]} 2. g3 {[%clk 0:03:01.2]}
2... g6 {[%clk 0:03:02.6]} 3. Bg2 {[%clk 0:03:03.1]} 3... Bg7 {[%clk 0:03:03.9]}
4. O-O {[%clk 0:03:05]} 4... O-O {[%clk 0:03:05.4]} 5. c4 {[%clk 0:03:05.3]}
5... d6 {[%clk 0:03:06.4]} 6. Nc3 {[%clk 0:03:06.8]} 6... e5 {[%clk 0:03:05.5]}
7. d3 {[%clk 0:03:07.9]} 7... Re8 {[%clk 0:03:06.6]} 8. Ne1 {[%clk 0:03:04.6]}
8... Nc6 {[%clk 0:03:05.4]} 9. Rb1 {[%clk 0:03:04.9]} 9... a5 {[%clk 0:03:04.7]}
10. a3 {[%clk 0:03:05.5]} 10... Bg4 {[%clk 0:02:58.8]} 11. h3 {[%clk 0:03:05.5]}
11... Be6 {[%clk 0:02:59.3]} 12. b4 {[%clk 0:03:06.2]} 12... axb4 {[%clk
0:03:01.2]} 13. axb4 {[%clk 0:03:08.1]} 13... Qd7 {[%clk 0:03:02.5]} 14. Kh2
{[%clk 0:03:08.2]} 14... e4 {[%clk 0:02:41]} 15. b5 {[%clk 0:02:59.4]} 15... Ne5
{[%clk 0:02:41.4]} 16. Bg5 {[%clk 0:02:37.8]} 16... exd3 {[%clk 0:02:37.9]} 17.
exd3 {[%clk 0:02:39.7]} 17... Ra3 {[%clk 0:01:58.1]} 18. Bxf6 {[%clk 0:02:26.6]}
18... Bxf6 {[%clk 0:01:56.4]} 19. Ne4 {[%clk 0:02:27.3]} 19... Bg7 {[%clk
0:01:52.1]} 20. f4 {[%clk 0:02:08]} 20... Nxd3 {[%clk 0:01:33.9]} 21. Nxd3
{[%clk 0:02:09.9]} 21... Bxc4 {[%clk 0:01:34.9]} 22. Nb4 {[%clk 0:01:42.3]}
22... Bxf1 {[%clk 0:01:15]} 23. Qxf1 {[%clk 0:01:44.2]} 23... Re3 {[%clk
0:01:04.2]} 24. Qc4 {[%clk 0:01:41]} 24... Qe6 {[%clk 0:00:52.7]} 25. Qxe6
{[%clk 0:01:27]} 25... Rxe6 {[%clk 0:00:54.6]} 26. Ng5 {[%clk 0:01:25.8]} 26...
Re8 {[%clk 0:00:55.7]} 27. Nd5 {[%clk 0:01:22.8]} 27... Re2 {[%clk 0:00:42.8]}
28. Nxc7 {[%clk 0:01:23.9]} 28... Rc8 {[%clk 0:00:43.9]} 29. b6 {[%clk
0:01:23.6]} 29... Bd4 {[%clk 0:00:37.2]} 30. Kh1 {[%clk 0:01:18.3]} 30... Bxb6
{[%clk 0:00:25]} 31. Bf3 {[%clk 0:00:51.4]} 31... Rf2 {[%clk 0:00:15.8]} 32. Nd5
{[%clk 0:00:48.6]} 32... Bd4 {[%clk 0:00:10.5]} 33. Ne7+ {[%clk 0:00:48.9]}
33... Kg7 {[%clk 0:00:10.8]} 34. Nxc8 {[%clk 0:00:50.4]} 34... h6 {[%clk
0:00:12.4]} 35. Nxf7 {[%clk 0:00:46.9]} 35... Rxf3 {[%clk 0:00:13]} 36. Ncxd6
{[%clk 0:00:43.4]} 36... Rxg3 {[%clk 0:00:13.9]} 37. Rxb7 {[%clk 0:00:40.5]}
37... Rxh3+ {[%clk 0:00:14.7]} 38. Kg2 {[%clk 0:00:41.6]} 38... Ra3 {[%clk
0:00:13.3]} 39. Ng5+ {[%clk 0:00:40]} 39... Kf6 {[%clk 0:00:13]} 40. Rf7# {[%clk
0:00:40.3]} 1-0